[Event "11th LCC FIDE Open 2019"]
[Site "London"]
[Date "2019.12.02"]
[Round "5.19"]
[White "Osborne, Marcus E"]
[Black "Percivaldi, Martin"]
[Result "0-1"]
[ECO "A85"]
[WhiteElo "2166"]
[BlackElo "2384"]
[Annotator "RC"]
[PlyCount "112"]
[EventDate "2019.11.29"]
[EventType "swiss"]
[EventCountry "ENG"]
[TimeControl "40/5400+30:1800+30"]

1. c4 {[%emt 0:00:00]} e6 {[%emt 0:01:51]} 2. Nc3 {[%emt 0:00:00]} f5 {[%emt 0:00:46]} 3. d4 {[%emt 0:00:00]} Nf6 {[%emt 0:00:10]} 4. Nf3 {[%emt 0:00:42]} Bb4 {[%emt 0:00:10]} 5. Qb3 {[%emt 0:00:16]} a5 {[%emt 0:00:13]} 6. Bd2 {[%emt 0:00:32]} b6 {[%emt 0:03:15]} 7. g3 {[%emt 0:00:13]} Bb7 {[%emt 0:00:10]} 8. Bg2 {[%emt 0:00:07]} O-O {[%emt 0:01:01]} 9. O-O {[%emt 0:00:06]} Qe7 {[%emt 0:07:28]} 10. Nb5 {[%emt 0:19:56]} Bxd2 {[%emt 0:09:02]} 11. Nxd2 {[%emt 0:00:12]} Bxg2 {[%emt 0:01:08]} 12. Kxg2 {[%emt 0:00:06]} Na6 {[%emt 0:07:36]} 13. Rae1 {[%emt 0:12:52]} d5 {[%emt 0:07:28]} 14. cxd5 {[%emt 0:03:56]} exd5 {[%emt 0:00:27]} 15. e4 {[%emt 0:07:36]} fxe4 {[%emt 0:04:14]} 16. Nxe4 {[%emt 0:00:52]} c6 {[%emt 0:00:14]} 17. Ng5 {[%emt 0:01:01]} Qb4 {[%emt 0:11:41]} 18. Qxb4 {[%emt 0:02:22]} axb4 {[%emt 0:15:38]} 19. Nd6 {[%emt 0:00:24]} Ra7 {[%emt 0:00:18]} 20. Ne6 {[%emt 0:17:01]} Rfa8 {[%emt 0:02:10]} 21. Nf5 {[%emt 0:06:29]} c5 {[%emt 0:02:00]} 22. f3 {[%emt 0:09:40]} cxd4 {[%emt 0:03:44]} 23. Nfxd4 {[%emt 0:01:17]} Nc5 {[%emt 0:00:57]} 24. Nc6 {[%emt 0:01:21]} Rxa2 {[%emt 0:01:01]} 25. Ne7+ {[%emt 0:04:10]} Kf7 {[%emt 0:00:48]} 26. Ng5+ {[%emt 0:01:35]} Kf8 {[%emt 0:00:07]} 27. Re2 {[%emt 0:02:18]} Re8 {[%emt 0:10:57]} 28. Rfe1 {[%emt 0:00:13]} Nd3 {[%emt 0:01:59]} 29. Ne6+ {[%emt 0:00:05]} Kxe7 {[%emt 0:01:30]} 30. Nf4+ {[%emt 0:00:06]} Kd6 {[%emt 0:00:33]} 31. Nxd3 {[%emt 0:00:09]} Rxe2+ {[%emt 0:00:02]} 32. Rxe2 {[%emt 0:00:10]} Ra4 {[%emt 0:00:31]} 33. b3 {[%emt 0:02:49]} Ra3 {[%emt 0:00:11]} 34. Rb2 {[%emt 0:00:07]} d4 {[%emt 0:03:53]} 35. Nxb4 {[%emt 0:00:10]} Kc5 {[%emt 0:00:01]} 36. Nd3+ {[%emt 0:00:40]} Kb5 {[%emt 0:00:01]} 37. Kf2 {[%emt 0:02:17]} Nd5 {[%emt 0:00:31]} 38. Ke2 {[%emt 0:00:57]} Ra1 {[%emt 0:00:28]} 39. Ne5 {[%emt 0:03:44]} Nb4 {[%emt 0:04:39]} 40. f4 {[%emt 0:02:31]} Rh1 {[%emt 0:00:29]} 41. Kf3 {[%emt 0:03:10]} Re1 {[%emt 0:02:03]} 42. Rd2 {[%emt 0:02:07]} Re3+ {[%emt 0:02:59]} 43. Kf2 {[%emt 0:02:14]} Kc5 {[%emt 0:03:53]} 44. Nd7+ {[%emt 0:02:04]} Kd5 {[%emt 0:00:16]} 45. Nxb6+ {[%emt 0:06:21]} Ke4 {[%emt 0:00:14]} 46. Nd7 {[%emt 0:02:35]} Nd3+ {[%emt 0:06:04]} 47. Kg2 {[%emt 0:01:05]} Re1 {[%emt 0:00:39]} 48. Nb6 {[%emt 0:05:46]} Nc5 {[%emt 0:04:02]} 49. Kf2 {[%emt 0:01:45]} Rh1 {[%emt 0:01:07]} 50. Kg2 {[%emt 0:02:04]} Rb1 {[%emt 0:01:40]} 51. Kf2 {[%emt 0:01:02]} Nxb3 {[%emt 0:03:08]} 52. Re2+ {[%emt 0:00:09]} Kd3 {[%emt 0:00:06]} 53. Re7 {[%emt 0:01:02]} Rb2+ {[%emt 0:00:36]} 54. Kf3 {[%emt 0:00:23]} Nd2+ {[%emt 0:00:11]} 55. Kg4 {[%emt 0:00:17]} Rxb6 {[%emt 0:00:09]} 56. Rxg7 {[%emt 0:00:03]} Ne4 {[%emt 0:02:28]} 0-1

[Event "11th LCC FIDE Open 2019"]
[Site "London"]
[Date "2019.12.02"]
[Round "5.20"]
[White "Pasztor, Balazs"]
[Black "Taylor, Adam C"]
[Result "0-1"]
[ECO "C54"]
[WhiteElo "2166"]
[BlackElo "2371"]
[Annotator "ChessBase"]
[PlyCount "116"]
[EventDate "2019.11.29"]
[EventType "swiss"]
[EventCountry "ENG"]
[SourceTitle "playchess.com"]
[Source "ChessBase"]
[SourceQuality "1"]
[TimeControl "40/5400+30:1800+30"]

1. e4 {[%emt 0:00:00]} e5 {[%emt 0:00:00]} 2. Nf3 {[%emt 0:00:06]} Nc6 {[%emt 0:00:00]} 3. Bc4 {[%emt 0:00:23]} Bc5 {[%emt 0:00:00]} 4. c3 {[%emt 0:00:47]} Nf6 {[%emt 0:00:00]} 5. d3 {[%emt 0:00:42]} O-O {[%emt 0:03:30]} 6. Bb3 {[%emt 0:03:33]} h6 {[%emt 0:00:00]} 7. O-O {[%emt 0:03:59]} d6 {[%emt 0:00:00]} 8. Nbd2 {[%emt 0:02:27]} a5 {[%emt 0:00:00]} 9. h3 {[%emt 0:02:40]} Bd7 {[%emt 0:00:54]} 10. Re1 {[%emt 0:02:17]} a4 {[%emt 0:00:06]} 11. Bc2 {[%emt 0:02:46]} Qb8 {[%emt 0:00:12]} 12. Nf1 {[%emt 0:08:23]} Qa7 {[%emt 0:00:09]} 13. Be3 {[%emt 0:01:26]} Bxe3 {[%emt 0:00:54]} 14. Nxe3 {[%emt 0:02:39]} Ne7 {[%emt 0:00:05]} 15. Qd2 {[%emt 0:10:48]} Ng6 {[%emt 0:00:32]} 16. Rad1 {[%emt 0:04:53]} Rfe8 {[%emt 0:01:03]} 17. Nf5 {[%emt 0:02:59]} Qb6 {[%emt 0:09:47]} 18. Bb1 {[%emt 0:04:41]} d5 {[%emt 0:02:08]} 19. Ne3 {[%emt 0:11:01]} c6 {[%emt 0:02:03]} 20. exd5 {[%emt 0:05:24]} cxd5 {[%emt 0:00:09]} 21. d4 {[%emt 0:04:21]} e4 {[%emt 0:00:02]} 22. Nh2 {[%emt 0:01:50]} Qc7 {[%emt 0:06:15]} 23. f3 {[%emt 0:05:44]} Ra5 {[%emt 0:06:04]} 24. fxe4 {[%emt 0:02:47]} dxe4 {[%emt 0:00:12]} 25. d5 {[%emt 0:03:06]} Qg3 {[%emt 0:01:41]} 26. c4 {[%emt 0:02:25]} Rc5 {[%emt 0:00:31]} 27. Qf2 {[%emt 0:02:14]} Qxf2+ {[%emt 0:01:22]} 28. Kxf2 {[%emt 0:00:08]} b5 {[%emt 0:00:07]} 29. b4 {[%emt 0:01:39]} axb3 {[%emt 0:00:05]} 30. axb3 {[%emt 0:00:08]} bxc4 {[%emt 0:00:13]} 31. bxc4 {[%emt 0:00:45]} Ne5 {[%emt 0:00:21]} 32. Rd4 {[%emt 0:01:03]} Rec8 {[%emt 0:02:48]} 33. Bxe4 {[%emt 0:02:17]} Nxe4+ {[%emt 0:03:12]} 34. Rxe4 {[%emt 0:00:07]} Nd3+ {[%emt 0:00:04]} 35. Ke2 {[%emt 0:00:22]} Nxe1 {[%emt 0:00:04]} 36. Kxe1 {[%emt 0:00:45]} f5 {[%emt 0:00:11]} 37. Re7 {[%emt 0:03:55]} f4 {[%emt 0:00:13]} 38. Rxd7 {[%emt 0:01:06]} fxe3 {[%emt 0:00:05]} 39. Re7 {[%emt 0:01:39]} Rxc4 {[%emt 0:00:27]} 40. Rxe3 {[%emt 0:00:27]} Rc1+ {[%emt 0:00:35]} 41. Kf2 {[%emt 0:30:41]} Rd1 {[%emt 0:30:05]} 42. Re2 {[%emt 0:01:01]} Rxd5 {[%emt 0:00:10]} 43. Nf3 {[%emt 0:00:28]} Kh7 {[%emt 0:00:09]} 44. Kg3 {[%emt 0:00:00]} Rdc5 {[%emt 0:00:00]} 45. Re4 {[%emt 0:00:00]} Rc4 {[%emt 0:00:00]} 46. Re3 {[%emt 0:00:00]} Rc2 {[%emt 0:00:00]} 47. Kh2 {[%emt 0:00:00]} R8c3 {[%emt 0:00:00]} 48. Rxc3 {[%emt 0:00:00]} Rxc3 {[%emt 0:00:00]} 49. Kg3 {[%emt 0:00:00]} Ra3 {[%emt 0:00:00]} 50. Kg4 {[%emt 0:00:00]} Kg6 {[%emt 0:00:00]} 51. Ne5+ {[%emt 0:00:00]} Kf6 {[%emt 0:00:00]} 52. Nf3 {[%emt 0:00:00]} Ra4+ {[%emt 0:00:00]} 53. Kg3 {[%emt 0:00:00]} Kf5 {[%emt 0:00:00]} 54. Nh2 {[%emt 0:00:00]} Ra3+ {[%emt 0:00:00]} 55. Nf3 {[%emt 0:00:00]} Rc3 {[%emt 0:00:00]} 56. h4 {[%emt 0:00:00]} Ra3 {[%emt 0:00:00]} 57. h5 {[%emt 0:04:25]} Rc3 {[%emt 0:00:24]} 58. Kh4 {[%emt 0:00:00]} Rxf3 {[%emt 0:00:21]} 0-1

[Event "11th LCC FIDE Open 2019"]
[Site "London"]
[Date "2019.12.02"]
[Round "5.22"]
[White "Villiers, Thomas"]
[Black "Paterek, Michal"]
[Result "1/2-1/2"]
[ECO "B16"]
[WhiteElo "2145"]
[BlackElo "2317"]
[Annotator "ChessBase"]
[PlyCount "51"]
[EventDate "2019.11.29"]
[EventType "swiss"]
[EventCountry "ENG"]
[SourceTitle "playchess.com"]
[Source "ChessBase"]
[SourceQuality "1"]
[TimeControl "40/5400+30:1800+30"]

1. e4 {[%emt 0:13:39]} c6 {[%emt 0:00:00]} 2. d4 {[%emt 0:00:30]} d5 {[%emt 0:00:00]} 3. Nc3 {[%emt 0:00:08]} dxe4 {[%emt 0:00:06]} 4. Nxe4 {[%emt 0:00:16]} Nf6 {[%emt 0:01:50]} 5. Nxf6+ {[%emt 0:00:14]} gxf6 {[%emt 0:00:04]} 6. Bc4 {[%emt 0:00:33]} Bf5 {[%emt 0:05:33]} 7. Ne2 {[%emt 0:01:34]} Nd7 {[%emt 0:07:11]} 8. Ng3 {[%emt 0:00:24]} Bg6 {[%emt 0:01:56]} 9. O-O {[%emt 0:02:42]} Nb6 {[%emt 0:07:45]} 10. Bb3 {[%emt 0:03:06]} h5 {[%emt 0:08:01]} 11. h4 {[%emt 0:02:24]} Qd7 {[%emt 0:05:29]} 12. f4 {[%emt 0:01:37]} f5 {[%emt 0:03:54]} 13. Be3 {[%emt 0:01:41]} Bg7 {[%emt 0:04:55]} 14. Nh1 {[%emt 0:02:00]} Nd5 {[%emt 0:17:40]} 15. Bc1 {[%emt 0:00:39]} Nf6 {[%emt 0:00:43]} 16. Nf2 {[%emt 0:02:04]} Rd8 {[%emt 0:01:48]} 17. c3 {[%emt 0:02:36]} Ne4 {[%emt 0:01:53]} 18. Nd3 {[%emt 0:01:48]} e6 {[%emt 0:11:00]} 19. Be3 {[%emt 0:01:02]} Qe7 {[%emt 0:00:31]} 20. Qe1 {[%emt 0:00:19]} Bf6 {[%emt 0:02:12]} 21. g3 {[%emt 0:00:17]} Rg8 {[%emt 0:00:19]} 22. Bf2 {[%emt 0:00:47]} b6 {[%emt 0:03:31]} 23. Kh2 {[%emt 0:01:53]} Kf8 {[%emt 0:00:52]} 24. Rd1 {[%emt 0:04:11]} Kg7 {[%emt 0:01:26]} 25. Ne5 {[%emt 0:00:29]} Qc7 {[%emt 0:01:33]} 26. Qe2 {[%emt 0:00:57]} 1/2-1/2

[Event "11th LCC FIDE Open 2019"]
[Site "London"]
[Date "2019.12.02"]
[Round "5.24"]
[White "Stanisz, Patryk"]
[Black "Zapolskis, Antanas"]
[Result "0-1"]
[ECO "A46"]
[WhiteElo "2139"]
[BlackElo "2280"]
[Annotator "ChessBase"]
[PlyCount "62"]
[EventDate "2019.11.29"]
[EventType "swiss"]
[EventCountry "ENG"]
[SourceTitle "playchess.com"]
[Source "ChessBase"]
[SourceQuality "1"]
[TimeControl "40/5400+30:1800+30"]

1. d4 {[%emt 0:01:27]} b5 {[%emt 0:17:35]} 2. Nf3 {[%emt 0:00:16]} Nf6 {[%emt 0:00:19]} 3. Bg5 {[%emt 0:00:21]} Ne4 {[%emt 0:00:51]} 4. Bh4 {[%emt 0:00:50]} Bb7 {[%emt 0:00:15]} 5. Nbd2 {[%emt 0:11:59]} d5 {[%emt 0:11:39]} 6. e3 {[%emt 0:02:41]} a6 {[%emt 0:00:09]} 7. Nxe4 {[%emt 0:07:38]} dxe4 {[%emt 0:00:10]} 8. Nd2 {[%emt 0:00:09]} g6 {[%emt 0:16:30]} 9. c4 {[%emt 0:05:14]} Bg7 {[%emt 0:00:19]} 10. cxb5 {[%emt 0:01:12]} O-O {[%emt 0:00:10]} 11. bxa6 {[%emt 0:02:33]} Nxa6 {[%emt 0:00:08]} 12. Qb3 {[%emt 0:08:28]} Bd5 {[%emt 0:06:11]} 13. Qa3 {[%emt 0:00:45]} c5 {[%emt 0:01:27]} 14. Bxa6 {[%emt 0:08:23]} Qd6 {[%emt 0:10:50]} 15. Rc1 {[%emt 0:24:28]} g5 {[%emt 0:11:19]} 16. Bxg5 {[%emt 0:02:29]} Qg6 {[%emt 0:00:50]} 17. Bxe7 {[%emt 0:03:45]} Rxa6 {[%emt 0:06:03]} 18. Qc3 {[%emt 0:02:14]} cxd4 {[%emt 0:00:00]} 19. exd4 {[%emt 0:05:06]} Rc6 20. Bc5 {[%emt 0:00:38]} Qxg2 21. Rf1 {[%emt 0:02:21]} Re8 {[%emt 0:05:45]} 22. Kd1 {[%emt 0:04:59]} Qg4+ 23. f3 {[%emt 0:00:24]} exf3 24. b4 {[%emt 0:02:39]} Rce6 25. Kc2 {[%emt 0:03:21]} Re3 {[%emt 0:00:00]} 26. Qa1 {[%emt 0:00:00]} Qf5+ 27. Kb2 {[%emt 0:00:00]} Qd3 28. Rc2 Bxd4+ {[%emt 0:00:38]} 29. Bxd4 {[%emt 0:00:00]} Qxd4+ {[%emt 0:00:12]} 30. Kb1 {[%emt 0:00:00]} Re1+ {[%emt 0:00:35]} 31. Rc1 {[%emt 0:00:00]} Qd3+ {[%emt 0:00:07]} 0-1

[Event "11th LCC FIDE Open 2019"]
[Site "London"]
[Date "2019.12.02"]
[Round "5.25"]
[White "Stoyanov, Viktor"]
[Black "Willmoth, Robert F"]
[Result "1-0"]
[ECO "B07"]
[WhiteElo "2272"]
[BlackElo "2108"]
[Annotator "ChessBase"]
[PlyCount "101"]
[EventDate "2019.11.29"]
[EventType "swiss"]
[EventCountry "ENG"]
[SourceTitle "playchess.com"]
[Source "ChessBase"]
[SourceQuality "1"]
[TimeControl "40/5400+30:1800+30"]

1. e4 {[%emt 0:00:00]} d6 {[%emt 0:00:12]} 2. d4 {[%emt 0:00:00]} Nf6 {[%emt 0:00:03]} 3. Nc3 {[%emt 0:00:00]} g6 {[%emt 0:00:04]} 4. Be3 {[%emt 0:00:03]} c6 {[%emt 0:00:08]} 5. h3 {[%emt 0:00:05]} Bg7 {[%emt 0:00:14]} 6. f4 {[%emt 0:01:29]} d5 {[%emt 0:02:42]} 7. e5 {[%emt 0:03:19]} Ne4 {[%emt 0:01:18]} 8. Nxe4 {[%emt 0:06:25]} dxe4 {[%emt 0:00:02]} 9. Ne2 {[%emt 0:05:46]} Qb6 {[%emt 0:00:28]} 10. Qc1 {[%emt 0:01:30]} O-O {[%emt 0:07:09]} 11. Nc3 {[%emt 0:00:29]} f5 {[%emt 0:03:04]} 12. Bc4+ {[%emt 0:03:15]} Kh8 {[%emt 0:00:13]} 13. h4 {[%emt 0:01:32]} h6 {[%emt 0:06:16]} 14. Bb3 {[%emt 0:09:22]} a5 {[%emt 0:06:37]} 15. a3 {[%emt 0:04:32]} Bd7 {[%emt 0:03:45]} 16. Qd2 {[%emt 0:04:19]} Qc7 {[%emt 0:01:09]} 17. h5 {[%emt 0:04:52]} gxh5 {[%emt 0:01:35]} 18. Rxh5 {[%emt 0:01:11]} e6 {[%emt 0:03:31]} 19. g3 {[%emt 0:13:14]} c5 {[%emt 0:06:57]} 20. dxc5 {[%emt 0:01:20]} Na6 {[%emt 0:02:44]} 21. Qd6 {[%emt 0:06:10]} Rf7 {[%emt 0:06:59]} 22. Qxc7 {[%emt 0:00:57]} Nxc7 {[%emt 0:00:04]} 23. O-O-O {[%emt 0:00:40]} a4 {[%emt 0:01:28]} 24. Bc4 {[%emt 0:00:47]} Bc6 {[%emt 0:06:13]} 25. Rg1 {[%emt 0:02:32]} Rg8 {[%emt 0:01:49]} 26. g4 {[%emt 0:00:54]} fxg4 {[%emt 0:05:51]} 27. Rxg4 {[%emt 0:00:08]} Rgf8 {[%emt 0:00:25]} 28. b4 {[%emt 0:06:12]} axb3 {[%emt 0:00:57]} 29. cxb3 {[%emt 0:00:07]} Rd8 {[%emt 0:03:01]} 30. Rh2 {[%emt 0:01:23]} Kh7 {[%emt 0:03:54]} 31. Rd2 {[%emt 0:01:55]} Rxd2 {[%emt 0:00:29]} 32. Kxd2 {[%emt 0:00:09]} h5 {[%emt 0:00:10]} 33. Rg5 {[%emt 0:00:34]} Rf5 {[%emt 0:00:22]} 34. Rxf5 {[%emt 0:00:45]} exf5 {[%emt 0:00:02]} 35. Ke1 {[%emt 0:00:32]} Bd7 {[%emt 0:01:31]} 36. b4 {[%emt 0:00:32]} Bf8 {[%emt 0:01:34]} 37. Kf2 {[%emt 0:01:41]} Kg6 {[%emt 0:00:16]} 38. a4 {[%emt 0:03:44]} Be6 {[%emt 0:00:44]} 39. Bxe6 {[%emt 0:01:25]} Nxe6 {[%emt 0:00:02]} 40. Nd5 {[%emt 0:00:17]} Kf7 {[%emt 0:00:36]} 41. Kg3 {[%emt 0:30:19]} Ke8 {[%emt 0:32:28]} 42. Kh4 {[%emt 0:01:31]} Kd7 {[%emt 0:00:44]} 43. Kxh5 {[%emt 0:00:44]} Kc6 {[%emt 0:00:31]} 44. Nc3 {[%emt 0:00:28]} b6 {[%emt 0:01:14]} 45. b5+ {[%emt 0:00:09]} Kb7 {[%emt 0:00:18]} 46. cxb6 {[%emt 0:01:27]} Bc5 {[%emt 0:01:16]} 47. Bxc5 {[%emt 0:00:32]} Nxc5 {[%emt 0:02:10]} 48. Kg5 {[%emt 0:00:28]} e3 {[%emt 0:00:21]} 49. Kxf5 {[%emt 0:00:07]} Nxa4 {[%emt 0:00:16]} 50. Nxa4 {[%emt 0:00:07]} e2 {[%emt 0:00:05]} 51. Nc5+ {[%emt 0:00:20]} 1-0

[Event "11th LCC FIDE Open 2019"]
[Site "London"]
[Date "2019.12.02"]
[Round "5.26"]
[White "Semprun Martinez, Fernando"]
[Black "McClement, Andrew"]
[Result "1/2-1/2"]
[ECO "B81"]
[WhiteElo "2071"]
[BlackElo "2226"]
[Annotator "RC"]
[PlyCount "80"]
[EventDate "2019.11.29"]
[EventType "swiss"]
[EventCountry "ENG"]
[SourceTitle "playchess.com"]
[Source "ChessBase"]
[SourceQuality "1"]
[TimeControl "40/5400+30:1800+30"]

1. e4 {[%emt 0:00:00]} c5 {[%emt 0:00:00]} 2. Nf3 {[%emt 0:00:00]} d6 {[%emt 0:00:00]} 3. d4 {[%emt 0:00:00]} cxd4 {[%emt 0:00:00]} 4. Nxd4 {[%emt 0:00:00]} Nf6 {[%emt 0:00:00]} 5. Nc3 {[%emt 0:00:00]} e6 {[%emt 0:00:00]} 6. g4 {[%emt 0:00:08]} h6 {[%emt 0:00:00]} 7. h4 {[%emt 0:00:20]} Nc6 {[%emt 0:00:00]} 8. Rg1 {[%emt 0:00:02]} d5 {[%emt 0:00:08]} 9. exd5 {[%emt 0:00:15]} Nxd5 {[%emt 0:00:13]} 10. Nxd5 {[%emt 0:00:16]} Qxd5 {[%emt 0:42:24]} 11. Bg2 {[%emt 0:00:22]} Qa5+ {[%emt 0:01:03]} 12. Bd2 {[%emt 0:00:06]} Qe5+ {[%emt 0:00:17]} 13. Be3 {[%emt 0:00:01]} Bd7 {[%emt 0:05:53]} 14. Nxc6 {[%emt 0:02:09]} Bxc6 {[%emt 0:00:08]} 15. Bxc6+ {[%emt 0:00:15]} bxc6 {[%emt 0:00:02]} 16. Qd4 {[%emt 0:00:52]} Qxd4 {[%emt 0:06:09]} 17. Bxd4 {[%emt 0:00:03]} c5 {[%emt 0:00:21]} 18. Bc3 {[%emt 0:00:01]} O-O-O {[%emt 0:00:19]} 19. Ke2 {[%emt 0:05:00]} f6 {[%emt 0:14:13]} 20. Rad1 {[%emt 0:04:38]} Be7 {[%emt 0:06:56]} 21. Rxd8+ {[%emt 0:04:25]} Rxd8 {[%emt 0:00:03]} 22. h5 {[%emt 0:06:18]} Kb7 {[%emt 0:01:35]} 23. Rg3 {[%emt 0:01:46]} Kc6 {[%emt 0:01:35]} 24. Re3 {[%emt 0:01:27]} Rd6 {[%emt 0:00:02]} 25. f4 {[%emt 0:14:20]} Bd8 {[%emt 0:02:22]} 26. Kf3 {[%emt 0:04:35]} Be7 {[%emt 0:06:35]} 27. Re2 {[%emt 0:06:35]} Kd7 {[%emt 0:05:08]} 28. Ke4 {[%emt 0:19:56]} Rd1 {[%emt 0:00:58]} 29. Rd2+ {[%emt 0:00:16]} Rxd2 {[%emt 0:00:02]} 30. Bxd2 {[%emt 0:00:06]} Kc6 {[%emt 0:00:40]} 31. c4 {[%emt 0:00:44]} Bd6 {[%emt 0:00:28]} 32. Bc3 {[%emt 0:02:15]} Bf8 {[%emt 0:00:27]} 33. a3 {[%emt 0:02:30]} a6 {[%emt 0:00:10]} 34. b4 {[%emt 0:03:46]} Bd6 {[%emt 0:02:35]} 35. Bd2 {[%emt 0:11:58]} Be7 {[%emt 0:00:15]} 36. Bc3 {[%emt 0:04:17]} Bd6 {[%emt 0:00:09]} 37. Bd2 {[%emt 0:00:57]} Be7 {[%emt 0:00:02]} 38. f5 {[%emt 0:04:08]} e5 {[%emt 0:01:55]} 39. Be1 {[%emt 0:01:14]} Bf8 {[%emt 0:01:00]} 40. Bc3 {[%emt 0:00:23]} Be7 {[%emt 0:01:19]} 1/2-1/2

[Event "11th LCC FIDE Open 2019"]
[Site "London"]
[Date "2019.12.02"]
[Round "5.28"]
[White "Russell, Christopher"]
[Black "Marusenko, Petr"]
[Result "1-0"]
[ECO "B18"]
[WhiteElo "2190"]
[BlackElo "2085"]
[Annotator "ChessBase"]
[PlyCount "59"]
[EventDate "2019.11.29"]
[EventType "swiss"]
[EventCountry "ENG"]
[SourceTitle "playchess.com"]
[Source "ChessBase"]
[SourceQuality "1"]
[TimeControl "40/5400+30:1800+30"]

1. e4 {[%emt 0:00:00]} c6 {[%emt 0:00:00]} 2. d4 {[%emt 0:00:00]} d5 {[%emt 0:00:00]} 3. Nc3 {[%emt 0:00:00]} dxe4 {[%emt 0:00:00]} 4. Nxe4 {[%emt 0:00:00]} Bf5 {[%emt 0:00:00]} 5. Ng3 {[%emt 0:00:00]} Bg6 {[%emt 0:00:00]} 6. Nh3 {[%emt 0:00:00]} e6 {[%emt 0:00:00]} 7. Nf4 {[%emt 0:02:56]} Bd6 {[%emt 0:00:07]} 8. Ngh5 {[%emt 0:14:04]} Nf6 {[%emt 0:13:21]} 9. Nxg7+ {[%emt 0:13:21]} Kd7 {[%emt 0:01:56]} 10. Be2 {[%emt 0:03:29]} Bxf4 {[%emt 0:48:48]} 11. Bxf4 {[%emt 0:00:51]} Rg8 {[%emt 0:00:02]} 12. Bh6 {[%emt 0:07:35]} Ne4 {[%emt 0:11:31]} 13. Nh5 {[%emt 0:15:52]} Bxh5 {[%emt 0:18:41]} 14. Bxh5 {[%emt 0:00:27]} Qh4 {[%emt 0:00:12]} 15. Qf3 {[%emt 0:08:44]} f5 {[%emt 0:00:08]} 16. Bf7 {[%emt 0:09:44]} Rd8 {[%emt 0:02:36]} 17. Bf4 {[%emt 0:04:00]} Rf8 {[%emt 0:00:09]} 18. g3 {[%emt 0:02:01]} Qh3 {[%emt 0:00:36]} 19. Bxe6+ {[%emt 0:01:49]} Kxe6 {[%emt 0:00:03]} 20. Qb3+ {[%emt 0:00:07]} Ke7 {[%emt 0:00:16]} 21. Qb4+ {[%emt 0:03:48]} c5 {[%emt 0:01:33]} 22. dxc5 {[%emt 0:00:55]} Nd7 {[%emt 0:00:10]} 23. O-O-O {[%emt 0:00:59]} a5 {[%emt 0:00:27]} 24. Qxb7 {[%emt 0:02:49]} Nexc5 {[%emt 0:00:20]} 25. Bd6+ {[%emt 0:01:47]} Kf6 {[%emt 0:00:05]} 26. Bxc5 {[%emt 0:02:23]} Nxc5 {[%emt 0:00:10]} 27. Rd6+ {[%emt 0:01:43]} Ne6 {[%emt 0:00:04]} 28. Rxe6+ {[%emt 0:01:41]} Kxe6 {[%emt 0:00:06]} 29. Re1+ {[%emt 0:00:03]} Kf6 {[%emt 0:00:21]} 30. Qe7+ {[%emt 0:00:42]} 1-0

[Event "11th LCC FIDE Open 2019"]
[Site "London"]
[Date "2019.12.02"]
[Round "5.29"]
[White "Royal, Shreyas"]
[Black "Smith, Andrew P"]
[Result "1/2-1/2"]
[ECO "A61"]
[WhiteElo "1941"]
[BlackElo "2172"]
[Annotator "ChessBase"]
[PlyCount "38"]
[EventDate "2019.11.29"]
[EventType "swiss"]
[EventCountry "ENG"]
[SourceTitle "playchess.com"]
[Source "ChessBase"]
[SourceQuality "1"]
[TimeControl "40/5400+30:1800+30"]

1. d4 {[%emt 0:00:00]} Nf6 {[%emt 0:02:50]} 2. c4 {[%emt 0:00:36]} c5 {[%emt 0:00:22]} 3. d5 {[%emt 0:01:46]} e6 {[%emt 0:00:31]} 4. Nc3 {[%emt 0:01:42]} exd5 {[%emt 0:00:33]} 5. cxd5 {[%emt 0:00:12]} d6 {[%emt 0:00:05]} 6. Nf3 {[%emt 0:02:40]} g6 {[%emt 0:00:09]} 7. Bf4 {[%emt 0:00:55]} a6 {[%emt 0:00:51]} 8. a4 {[%emt 0:00:05]} Bg7 {[%emt 0:00:59]} 9. h3 {[%emt 0:03:15]} O-O {[%emt 0:00:42]} 10. e3 {[%emt 0:01:24]} Qe7 {[%emt 0:17:31]} 11. Be2 {[%emt 0:06:12]} Nbd7 {[%emt 0:03:51]} 12. O-O {[%emt 0:01:58]} Nh5 {[%emt 0:06:41]} 13. Bh2 {[%emt 0:05:37]} f5 {[%emt 0:00:26]} 14. Re1 {[%emt 0:08:24]} Nhf6 {[%emt 0:05:57]} 15. Qc2 {[%emt 0:02:32]} Rb8 {[%emt 0:17:43]} 16. Rad1 {[%emt 0:13:00]} Re8 {[%emt 0:07:34]} 17. Bf4 {[%emt 0:09:46]} Qf8 {[%emt 0:04:58]} 18. Bh2 {[%emt 0:02:11]} Kh8 {[%emt 0:00:58]} 19. Bg3 {[%emt 0:01:53]} Nh5 {[%emt 0:07:14]} 1/2-1/2

[Event "11th LCC FIDE Open 2019"]
[Site "London"]
[Date "2019.12.02"]
[Round "5.30"]
[White "Grigoryan, Meri"]
[Black "Clarke, Brandon Gi"]
[Result "0-1"]
[ECO "B25"]
[WhiteElo "2050"]
[BlackElo "2431"]
[Annotator "ChessBase"]
[PlyCount "58"]
[EventDate "2019.11.29"]
[EventType "swiss"]
[EventCountry "ENG"]
[SourceTitle "playchess.com"]
[Source "ChessBase"]
[SourceQuality "1"]
[TimeControl "40/5400+30:1800+30"]

1. e4 {[%emt 0:11:05]} c5 {[%emt 0:00:07]} 2. Nc3 {[%emt 0:00:12]} Nc6 {[%emt 0:00:46]} 3. f4 {[%emt 0:00:19]} g6 {[%emt 0:00:18]} 4. Nf3 {[%emt 0:00:20]} Bg7 {[%emt 0:00:06]} 5. g3 {[%emt 0:03:24]} d6 {[%emt 0:02:58]} 6. Bg2 {[%emt 0:01:45]} e6 {[%emt 0:00:04]} 7. O-O {[%emt 0:00:49]} Nge7 {[%emt 0:00:02]} 8. d3 {[%emt 0:01:55]} O-O {[%emt 0:00:04]} 9. Kh1 {[%emt 0:03:07]} b6 {[%emt 0:00:57]} 10. g4 {[%emt 0:10:35]} f5 {[%emt 0:06:15]} 11. exf5 {[%emt 0:07:00]} exf5 {[%emt 0:03:48]} 12. g5 {[%emt 0:01:45]} d5 {[%emt 0:03:03]} 13. Ne2 {[%emt 0:14:49]} d4 {[%emt 0:06:06]} 14. Re1 {[%emt 0:14:17]} Nd5 {[%emt 0:01:00]} 15. Neg1 {[%emt 0:01:59]} Qd6 {[%emt 0:02:39]} 16. Nh3 {[%emt 0:07:21]} Bb7 {[%emt 0:00:05]} 17. Bd2 {[%emt 0:02:42]} Rfe8 {[%emt 0:01:52]} 18. c3 {[%emt 0:02:39]} dxc3 {[%emt 0:02:12]} 19. bxc3 {[%emt 0:00:57]} Bxc3 {[%emt 0:01:04]} 20. Bxc3 {[%emt 0:01:07]} Nxc3 {[%emt 0:00:03]} 21. Qb3+ {[%emt 0:01:55]} Nd5 {[%emt 0:00:05]} 22. Rxe8+ {[%emt 0:01:36]} Rxe8 {[%emt 0:00:03]} 23. Re1 {[%emt 0:01:16]} Rxe1+ {[%emt 0:00:04]} 24. Nxe1 {[%emt 0:00:05]} Nd4 {[%emt 0:00:47]} 25. Qc4 {[%emt 0:03:58]} Kg7 {[%emt 0:00:05]} 26. Qc1 {[%emt 0:00:38]} Qe7 {[%emt 0:00:41]} 27. Nf3 {[%emt 0:00:57]} Ne3 {[%emt 0:00:19]} 28. Qc3 {[%emt 0:03:10]} Nxg2 {[%emt 0:00:23]} 29. Nxd4 {[%emt 0:00:11]} Qe1+ {[%emt 0:00:07]} 0-1